bitfinex-derivatives/quotes_BTCF0:USTF0_20210102
["timestamp","ask_amount","ask_price","bid_price","bid_amount"]
[1609617784514,4.84639553,32837.0,32797.0,4.9223]
[1609617784714,4.84639553,32837.0,32797.0,5.03648]
[1609617784912,4.843,32837.0,32797.0,5.03648]
[1609617785513,0.18043158,32824.0,32822.0,0.18043158]
[1609617785914,0.18043158,32824.0,32822.0,0.15043158]
[1609617786117,0.2900866,32838.0,32822.0,0.29331158]
[1609617786520,5.0809,32829.0,32822.0,0.13288]
[1609617786721,0.2867,32838.0,32822.0,0.13288]
[1609617786919,4.624,32823.0,32822.0,0.13288]
[1609617787115,4.624,32823.0,32820.0,5.0]
[1609617787517,0.18043158,32821.0,32820.0,4.98]
[1609617787715,0.18043158,32821.0,32814.0,0.13388]
[1609617788116,0.18043158,32821.0,32797.0,0.11418]
[1609617788316,4.0737,32838.0,32797.0,0.11418]
[1609617789116,0.003372,32835.0,32797.0,0.11418]
[1609617789417,0.003372,32835.0,32810.0,0.18043158]
[1609617789617,4.07705542,32838.0,32810.0,0.33349158]
[1609617789819,4.07705542,32838.0,32810.0,0.15306]
[1609617791420,4.07705542,32838.0,32818.0,0.18043158]
[1609617791820,4.07705542,32838.0,32818.0,0.10987]
[1609617792521,4.0737,32838.0,32818.0,0.10987]
[1609617793523,0.2867,32838.0,32820.0,0.18043158]
[1609617794023,0.2867,32838.0,32837.0,1.0]
[1609617794926,0.2867,32838.0,32837.0,0.90705617]
[1609617795123,1.2867,32838.0,32819.0,1.0]
[1609617795523,0.18043158,32823.0,32819.0,1.0]
[1609617795723,1.2867,32838.0,32819.0,1.0]
[1609617796824,1.2867,32838.0,32819.0,0.81408152]
[1609617797125,0.2867,32838.0,32818.0,0.10987]
[1609617797324,0.2867,32838.0,32810.0,0.15306]
[1609617797526,0.2867,32838.0,32825.0,0.18043158]
[1609617797727,0.2867,32838.0,32785.0,1.0]
[1609617797927,0.2867,32838.0,32805.0,4.6951]
[1609617798129,0.2867,32838.0,32805.0,4.8688]
[1609617798327,0.2867,32838.0,32806.0,1.0]
[1609617799429,0.2867,32838.0,32837.0,0.18043158]
[1609617799630,0.2867,32838.0,32837.0,0.32820158]
[1609617801130,0.2867,32838.0,32837.0,6.32820158]
[1609617801631,0.00336175,32855.0,32837.0,6.32820158]
[1609617802732,0.00037287,32854.0,32837.0,6.32820158]
[1609617802934,0.00037287,32854.0,32837.0,6.14777]
[1609617803134,0.00037287,32854.0,32837.0,0.14777]
[1609617803534,0.18043158,32838.0,32826.0,0.18043158]
[1609617804134,0.00037297,32837.0,32827.0,0.00038095]
[1609617804533,0.00037297,32837.0,32805.0,4.8688]
[1609617804534,0.00037297,32837.0,32806.0,0.00038095]
[1609617805133,0.00037297,32837.0,32831.0,1.0]
[1609617805536,0.18043158,32832.0,32831.0,1.0]
[1609617806134,0.18080461,32832.0,32831.0,1.00038102]
[1609617806736,0.18080461,32832.0,32831.0,1.0]
[1609617807136,0.18080461,32832.0,32824.0,1.0]
[1609617807538,0.00037312,32831.0,32825.0,0.00038111]
[1609617808039,0.00037312,32832.0,32825.0,0.00038111]
[1609617808337,0.00037312,32832.0,32824.0,0.72108651]
[1609617808737,0.00037312,32832.0,32826.0,0.0003811]
[1609617808938,0.00037312,32832.0,32766.0,1.0]
[1609617809138,0.00037312,32832.0,32817.0,0.00038115]
[1609617809339,0.00037312,32832.0,32806.0,0.00038115]
[1609617809539,0.00037312,32832.0,32809.0,0.18043158]
[1609617809739,0.00037312,32832.0,32818.0,0.00038118]
[1609617809939,0.00037312,32832.0,32810.0,0.0003812]
[1609617810139,0.00037312,32832.0,32766.0,1.0]
[1609617810439,0.00037312,32832.0,32811.0,0.0003812]
[1609617810641,0.00037312,32832.0,32798.0,0.1202812]
[1609617811040,0.00037312,32832.0,32812.0,0.0003812]
[1609617811242,0.00037312,32832.0,32798.0,0.0189]
[1609617811443,0.00037312,32832.0,32813.0,0.0003812]
[1609617811845,0.00037312,32832.0,32799.0,0.00038122]
[1609617812043,0.00037312,32832.0,32798.0,0.0189]
[1609617812243,0.00037312,32832.0,32800.0,0.00038123]
[1609617812545,0.00037312,32832.0,32799.0,0.00038125]
[1609617812744,1.0,32823.0,32807.0,1.0]
[1609617812945,1.14932,32823.0,32807.0,1.0]
[1609617813145,0.00037328,32822.0,32808.0,0.00038127]
[1609617813549,0.18043158,32809.0,32808.0,0.00038127]
[1609617813846,0.30716158,32809.0,32808.0,0.00038127]
[1609617815158,0.30716158,32809.0,32807.0,0.8025]
[1609617815357,3.5661,32808.0,32807.0,0.8025]
[1609617815551,3.5661,32808.0,32791.0,0.16572]
[1609617815751,3.56647332,32808.0,32807.0,0.00038132]
[1609617815950,3.5661,32808.0,32792.0,0.00038136]
[1609617816350,3.5661,32808.0,32727.0,1.0]
[1609617816351,0.00037342,32808.0,32785.0,0.00038142]
[1609617816553,0.00037344,32807.0,32785.0,0.00038142]
[1609617816754,3.6013,32791.0,32785.0,0.00038142]
[1609617817162,3.6013,32791.0,32750.0,4.1477]
[1609617817163,0.00037347,32790.0,32751.0,0.00038148]
[1609617817354,1.00037347,32790.0,32751.0,0.00038148]
[1609617817563,3.9387,32774.0,32754.0,0.18043158]
[1609617817753,4.08761,32774.0,32754.0,0.18043158]
[1609617817952,4.08761,32774.0,32730.0,0.0003816]
[1609617818152,4.08761,32774.0,32755.0,0.00038166]
[1609617818354,4.08761,32774.0,32740.0,0.14366]
[1609617818552,4.08761,32774.0,32733.0,0.11431]
[1609617818753,1.14891,32774.0,32733.0,0.11431]
[1609617818955,3.4575,32760.0,32734.0,0.0003818]
[1609617819153,3.60569,32760.0,32734.0,0.0003818]
[1609617819554,0.18043158,32735.0,32734.0,0.0003818]
[1609617819753,0.18043158,32735.0,32706.0,0.00038188]
[1609617819953,3.9726,32720.0,32693.0,0.2874]
[1609617820354,0.14875,32730.0,32694.0,0.00038196]
[1609617820355,0.13012,32723.0,32694.0,0.00038196]
[1609617820557,4.4038,32700.0,32694.0,0.00038196]
[1609617820754,0.2976,32722.0,32669.0,0.00038216]
[1609617820954,5.0689,32695.0,32694.0,0.12841]
[1609617821357,0.13012,32723.0,32694.0,0.12841]
[1609617821358,0.0914,32711.0,32694.0,0.12841]
[1609617821553,4.53363158,32695.0,32650.0,0.07207541]
[1609617821755,4.53363158,32695.0,32691.0,0.13717]
[1609617821955,0.18043158,32695.0,32691.0,0.13717]
[1609617822758,0.18043158,32695.0,32679.0,0.13405]
[1609617822759,0.6291,32692.0,32679.0,0.13405]
[1609617822962,5.012,32680.0,32679.0,0.13405]
[1609617823161,5.012,32680.0,32650.0,0.07207541]
[1609617823361,0.1733,32682.0,32650.0,0.07207541]
[1609617823565,0.18043158,32651.0,32650.0,0.19085541]
[1609617823762,0.1733,32682.0,32650.0,0.19085541]
[1609617823961,5.0707,32672.0,32650.0,0.19085541]
[1609617824162,0.14838,32675.0,32650.0,0.19085541]
[1609617824763,3.7792,32667.0,32650.0,0.19085541]
[1609617825565,3.7792,32667.0,32654.0,1.0]
[1609617825764,1.0,32670.0,32654.0,1.0]
[1609617827567,0.18043158,32666.0,32659.0,1.18043158]
[1609617827766,0.18043158,32666.0,32659.0,1.32566158]
[1609617828167,1.0,32676.0,32659.0,1.32566158]
[1609617828969,1.0,32676.0,32659.0,5.28826158]
[1609617829168,0.3494,32676.0,32659.0,5.28826158]
[1609617829568,0.18043158,32697.0,32675.0,1.30276158]
[1609617829768,1.0,32707.0,32675.0,1.30276158]
[1609617831571,0.18043158,32711.0,32690.0,0.18043158]
[1609617831972,0.01562069,32720.0,32690.0,0.30050158]
[1609617832673,0.00319058,32703.0,32690.0,0.30050158]
[1609617833473,0.00319058,32703.0,32690.0,6.30050158]
[1609617833875,0.00319058,32703.0,32690.0,6.29950158]
[1609617834073,0.18043158,32713.0,32690.0,6.29950158]
[1609617835976,0.0992,32691.0,32690.0,6.29950158]
[1609617837277,0.18043158,32713.0,32690.0,6.29950158]
[1609617837478,0.18043158,32713.0,32690.0,0.29950158]
[1609617837679,0.18043158,32713.0,32712.0,0.35245158]
[1609617838078,0.18043158,32713.0,32712.0,0.17202]
[1609617839480,0.27113158,32713.0,32699.0,0.12645]
[1609617839679,0.18043158,32700.0,32699.0,0.12645]
[1609617840681,0.18043158,32700.0,32690.0,0.12007]
[1609617841082,0.18043158,32700.0,32675.0,0.12233]
[1609617841283,0.18043158,32700.0,32670.0,3.4269]
[1609617841687,0.18043158,32689.0,32685.0,0.18043158]
[1609617841887,0.18043158,32689.0,32639.0,1.0]
[1609617842087,0.18043158,32689.0,32628.0,1.0]
[1609617842088,0.18043158,32689.0,32650.0,4.80497541]
[1609617842487,0.00186712,32673.0,32650.0,4.80497541]
[1609617842687,0.18043158,32689.0,32650.0,4.80497541]
[1609617843288,0.18043158,32689.0,32650.0,0.07207541]
[1609617843490,3.9848,32681.0,32650.0,0.07207541]
[1609617843691,3.9848,32681.0,32661.0,0.18043158]
[1609617843890,3.9848,32681.0,32661.0,0.31119158]
[1609617844292,0.16285,32688.0,32661.0,0.31119158]
[1609617844890,0.0919,32687.0,32661.0,0.31119158]
[1609617845290,0.16285,32688.0,32661.0,0.31119158]
[1609617845490,0.1738,32696.0,32661.0,0.31119158]
[1609617845691,0.18043158,32676.0,32673.0,0.18043158]
[1609617847291,0.18043158,32676.0,32661.0,0.13076]
[1609617847491,1.18043158,32676.0,32661.0,0.13076]
[1609617847692,0.18043158,32662.0,32661.0,0.13076]
[1609617848094,0.18043158,32662.0,32661.0,0.13113631]
[1609617848992,0.18043158,32662.0,32661.0,0.13076]
[1609617849193,0.0909,32667.0,32660.0,1.0]
[1609617849394,0.0909,32667.0,32661.0,0.1164]
[1609617849593,0.18043158,32662.0,32661.0,0.1164]
[1609617850194,0.81143158,32662.0,32661.0,0.1164]
[1609617850394,0.27113158,32662.0,32650.0,0.07207541]
[1609617850595,4.5686,32661.0,32650.0,0.07207541]
[1609617850795,4.5686,32661.0,32651.0,0.00037646]
[1609617850995,4.5686,32661.0,32650.0,0.07207541]
[1609617851695,0.18043158,32651.0,32650.0,0.07207541]
[1609617852094,0.18043158,32651.0,32590.0,0.0750029]
[1609617852294,4.1741,32634.0,32602.0,0.03788004]
[1609617852695,4.1741,32634.0,32602.0,0.1494066]
[1609617852895,4.1741,32634.0,32603.0,0.0003767]
[1609617853498,0.092,32633.0,32603.0,0.0003767]
[1609617853697,0.18043158,32604.0,32603.0,0.0003767]
[1609617853899,0.2795,32633.0,32603.0,0.0003767]
[1609617854098,4.827,32611.0,32603.0,0.0003767]
[1609617854298,0.2795,32633.0,32602.0,0.14903]
[1609617854501,4.0446,32604.0,32602.0,0.14903]
[1609617854900,0.13226,32604.0,32602.0,0.14903]
[1609617855099,0.2795,32633.0,32602.0,0.14903]
[1609617855299,3.7004,32603.0,32602.0,0.14903]
[1609617855701,3.88083158,32603.0,32602.0,0.14903]
[1609617856501,3.88083158,32603.0,32555.0,4.9715]
[1609617856701,0.18043158,32603.0,32525.0,1.0]
[1609617856901,5.0997,32588.0,32525.0,1.0]
[1609617857105,5.0897,32588.0,32525.0,1.0]
[1609617857501,5.0897,32588.0,32515.0,1.0]
[1609617857701,5.0897,32588.0,32575.0,0.35433158]
[1609617857901,0.19737,32631.0,32575.0,0.1739]
[1609617857902,1.0,32627.0,32575.0,0.1739]
[1609617858301,3.9769,32593.0,32575.0,0.1739]
[1609617859102,3.9669,32593.0,32575.0,0.1739]
[1609617859503,1.0,32581.0,32575.0,0.1739]
[1609617859702,0.18043158,32576.0,32575.0,0.1739]
[1609617859902,3.82781158,32576.0,32575.0,0.1739]
[1609617860905,0.99,32581.0,32575.0,0.1739]
[1609617861104,0.12273,32622.0,32575.0,0.1739]
[1609617861705,4.0529,32625.0,32575.0,0.1739]
[1609617861706,0.18043158,32625.0,32575.0,0.1739]
[1609617861905,3.9199,32652.0,32589.0,4.4819]
[1609617862104,3.9199,32652.0,32589.0,4.58719]
[1609617863205,3.9199,32652.0,32590.0,1.0]
[1609617863706,3.9199,32652.0,32641.0,0.18043158]
[1609617863907,0.01049383,32657.0,32641.0,0.34305158]
[1609617864419,0.01049383,32657.0,32641.0,0.16262]
[1609617864609,0.12252,32662.0,32641.0,0.06908697]
[1609617864811,4.6279,32658.0,32641.0,0.06908697]
[1609617865007,4.77594,32658.0,32600.0,4.3103]
[1609617865609,0.14804,32658.0,32589.0,0.10529]
[1609617865810,4.2212,32643.0,32589.0,0.10529]
[1609617866210,4.3393,32643.0,32589.0,0.10529]
[1609617867219,4.3393,32643.0,32575.0,1.1739]
[1609617867416,0.1181,32643.0,32575.0,1.1739]
[1609617867811,0.1181,32643.0,32632.0,0.18043158]
[1609617868009,0.2944,32657.0,32632.0,0.15697]
[1609617869012,4.0791,32648.0,32632.0,0.15697]
[1609617869613,0.11692,32649.0,32632.0,0.15697]
[1609617869816,0.11692,32649.0,32633.0,0.18043158]
[1609617870313,0.2944,32657.0,32633.0,0.18043158]
[1609617871114,0.2944,32657.0,32642.0,1.0]
[1609617871314,0.2944,32657.0,32642.0,1.10913]
[1609617871515,0.5533,32656.0,32642.0,1.10913]
[1609617871716,0.18043158,32643.0,32642.0,1.10913]
[1609617872817,0.18043158,32643.0,32642.0,0.99812971]
[1609617873216,0.18043158,32643.0,32592.0,3.8748]
[1609617873816,0.18043158,32619.0,32611.0,0.18043158]
[1609617875219,0.14902,32637.0,32611.0,0.18043158]
[1609617875419,0.14902,32637.0,32611.0,0.15017]
[1609617875819,0.18043158,32625.0,32618.0,0.18043158]
[1609617876221,0.18043158,32625.0,32611.0,0.15017]
[1609617877623,0.14902,32637.0,32611.0,0.15017]
[1609617877824,0.14902,32637.0,32626.0,0.18043158]
[1609617878424,0.14902,32637.0,32620.0,0.13679]
[1609617879226,1.0,32641.0,32620.0,0.13679]
[1609617879425,5.1299,32643.0,32620.0,0.13679]
[1609617879625,5.1299,32643.0,32621.0,0.03]
[1609617879825,0.18043158,32622.0,32621.0,0.03]
[1609617880227,0.10899,32635.0,32621.0,0.03]
[1609617881727,0.28942158,32635.0,32629.0,0.18043158]
[1609617882329,0.18043158,32635.0,32629.0,0.25326228]
[1609617882931,0.18043158,32635.0,32629.0,0.25139183]
[1609617883329,0.01102982,32647.0,32629.0,0.25139183]
[1609617883731,0.18043158,32634.0,32629.0,0.25139183]
[1609617884132,0.00037523,32646.0,32629.0,0.25139183]
[1609617884332,0.00321645,32648.0,32629.0,0.25139183]
[1609617884532,0.00037524,32645.0,32629.0,0.25139183]
[1609617884733,0.00037524,32647.0,32629.0,0.25139183]
[1609617884935,0.00037524,32647.0,32629.0,0.24939183]
[1609617885133,0.00037524,32644.0,32629.0,0.24939183]
[1609617885335,0.00037524,32649.0,32629.0,0.16636]
[1609617885536,0.00037524,32643.0,32629.0,0.16636]
[1609617885736,0.18043158,32638.0,32633.0,0.18043158]
[1609617886335,0.60319673,32651.0,32633.0,0.18043158]
[1609617886936,0.00037525,32650.0,32633.0,0.18043158]
[1609617887439,0.00037525,32650.0,32641.0,1.0]
[1609617887839,0.18043158,32642.0,32641.0,1.18043158]
[1609617888340,0.60319673,32651.0,32641.0,1.18043158]
[1609617888740,0.00037523,32650.0,32641.0,1.18043158]
[1609617889441,0.00037523,32650.0,32641.0,0.18043158]
[1609617889841,0.00037523,32650.0,32649.0,0.18043158]
[1609617890242,0.00037523,32650.0,32649.0,0.29777158]
[1609617891545,0.44622673,32651.0,32649.0,0.29777158]
[1609617891546,0.39589176,32653.0,32649.0,0.29777158]
[1609617891945,0.00037517,32652.0,32649.0,0.29777158]
[1609617892744,0.00037517,32652.0,32650.0,0.00037667]
[1609617892945,0.00037504,32656.0,32650.0,0.00037667]
[1609617893247,0.00037504,32666.0,32650.0,0.00037667]
[1609617893847,0.00037504,32666.0,32665.0,0.18043158]
[1609617894047,0.00037504,32666.0,32665.0,0.31029158]
[1609617894950,0.09137504,32666.0,32665.0,0.31029158]
[1609617895448,0.00037504,32666.0,32665.0,1.31029158]
[1609617896248,0.33652831,32667.0,32665.0,1.31029158]
[1609617897450,0.33652831,32667.0,32665.0,0.31029158]
[1609617897649,0.0928,32666.0,32665.0,0.31029158]
[1609617897852,0.091,32671.0,32665.0,0.31029158]
[1609617898853,0.77090544,32693.0,32665.0,0.31029158]
[1609617899053,0.77090544,32693.0,32665.0,1.31029158]
[1609617899257,0.2917,32697.0,32665.0,1.31029158]
[1609617899454,0.78158665,32705.0,32665.0,1.31029158]
[1609617899853,0.78158665,32705.0,32704.0,0.18043158]
[1609617900056,0.78158665,32705.0,32701.0,0.1249]
[1609617901657,0.0924,32704.0,32701.0,0.1249]
[1609617901857,0.18043158,32702.0,32701.0,0.1249]
[1609617902058,0.0003748,32703.0,32701.0,0.1249]
[1609617902260,0.78158665,32705.0,32668.0,0.0061]
[1609617902459,0.78158665,32705.0,32692.0,0.16138]
[1609617902659,0.00037483,32704.0,32692.0,0.16138]
[1609617903460,0.00037483,32704.0,32668.0,0.0061]
[1609617903660,0.0003749,32702.0,32668.0,0.0061]
[1609617903860,0.18043158,32669.0,32668.0,0.0061]
[1609617904260,0.27193158,32669.0,32668.0,0.0061]
[1609617904660,0.0915,32669.0,32668.0,0.0061]
[1609617905060,0.0929,32675.0,32668.0,0.0061]
[1609617905261,0.77780117,32699.0,32668.0,0.0061]
[1609617905961,0.77780117,32699.0,32694.0,0.18043158]
[1609617906160,0.0927,32698.0,32694.0,0.18043158]
[1609617906862,0.77831226,32705.0,32694.0,0.18043158]
[1609617907763,0.77831226,32705.0,32688.0,0.11635]
[1609617907963,0.18043158,32695.0,32690.0,0.18043158]
[1609617908963,0.78187836,32717.0,32690.0,0.18043158]
[1609617909163,0.0911,32715.0,32690.0,5.48633158]
[1609617909363,0.0911,32715.0,32713.0,1.0]
[1609617909764,0.1515,32718.0,32713.0,1.0]
[1609617909963,0.46363158,32714.0,32713.0,1.0]
[1609617910764,0.2832,32714.0,32713.0,1.0]
[1609617911167,0.2832,32714.0,32713.0,0.90663783]
[1609617911365,0.2832,32714.0,32707.0,0.13508]
[1609617911966,0.18043158,32708.0,32707.0,0.13508]
[1609617913165,0.29938158,32708.0,32704.0,0.18043158]
[1609617914466,0.29938158,32708.0,32704.0,0.1785643]
[1609617914866,0.29938158,32708.0,32688.0,0.11635]
[1609617915066,0.29938158,32708.0,32666.0,1.0]
[1609617915267,0.00037469,32707.0,32666.0,1.0]
[1609617915867,0.18043158,32686.0,32683.0,0.18043158]
[1609617917467,0.18043158,32686.0,32685.0,1.0]
[1609617917667,0.18043158,32686.0,32685.0,1.14271]
[1609617918771,1.0,32704.0,32685.0,1.14271]
[1609617919372,0.10642477,32703.0,32685.0,0.14271]
[1609617919571,0.00037477,32702.0,32685.0,0.14271]
[1609617919971,0.18043158,32686.0,32685.0,0.14271]
[1609617920371,0.0003748,32686.0,32685.0,0.14271]
[1609617920972,1.00037482,32702.0,32685.0,0.14271]
[1609617921172,1.00037482,32702.0,32677.0,0.14984]
[1609617921374,0.00037482,32701.0,32677.0,0.14984]
[1609617921975,0.18043158,32678.0,32677.0,0.14984]
[1609617922575,0.18080657,32678.0,32677.0,0.14984]
[1609617923276,0.27300657,32678.0,32677.0,0.14984]
[1609617923477,1.27300657,32678.0,32677.0,0.14984]
[1609617923675,1.18080657,32678.0,32677.0,0.14984]
[1609617924478,1.18080657,32678.0,32660.0,1.0]
[1609617924677,0.0917,32677.0,32660.0,1.0]
[1609617925076,0.26565,32677.0,32660.0,1.0]
[1609617925277,0.00037505,32676.0,32660.0,1.0]
[1609617925477,0.00037505,32676.0,32663.0,1.0]
[1609617925876,0.18043158,32664.0,32663.0,1.0]
[1609617927481,0.18043158,32664.0,32659.0,1.13057]
[1609617927881,0.18043158,32660.0,32659.0,1.13057]
[1609617928882,0.18043158,32660.0,32659.0,7e-05]
[1609617929083,1.18043158,32660.0,32649.0,0.11734]
[1609617929283,1.18080674,32660.0,32649.0,0.11734]
[1609617929483,1.18080674,32660.0,32637.0,1.0]
[1609617929684,1.09217519,32659.0,32637.0,1.0]
[1609617929884,0.18043158,32638.0,32637.0,1.0]
[1609617931085,0.18043158,32638.0,32628.0,2.18052071]
[1609617931485,0.18043158,32638.0,32607.0,4.1601]
[1609617931486,0.0003756,32637.0,32630.0,2.00332871]
[1609617931688,0.0917,32636.0,32630.0,2.00332871]
[1609617931886,0.18043158,32631.0,32630.0,2.00332871]
[1609617932085,1.77483158,32631.0,32630.0,1.83432871]
[1609617932286,1.77520746,32631.0,32630.0,1.83432871]
[1609617932488,1.77520746,32631.0,32617.0,2.73181188]
[1609617932489,3.47501107,32631.0,32577.0,3.4796]
[1609617932688,2.88061107,32631.0,32553.0,0.2745]
[1609617932889,3.6048,32608.0,32578.0,1.0]
[1609617933088,1.0,32607.0,32578.0,1.0]
[1609617933490,1.00037619,32607.0,32578.0,1.0]
[1609617933690,0.00037625,32606.0,32578.0,1.0]
[1609617933890,0.18043158,32579.0,32578.0,1.0]
[1609617934091,0.27143158,32579.0,32578.0,1.0]
[1609617934292,3.83393158,32579.0,32578.0,1.0]
[1609617934790,3.83393158,32579.0,32553.0,0.2745]
[1609617934993,0.27143158,32579.0,32553.0,0.2745]
[1609617935192,0.27143158,32579.0,32548.0,0.18043158]
[1609617935397,0.27143158,32579.0,32547.0,2.20142274]
[1609617935790,1.27143158,32579.0,32547.0,2.20142274]
[1609617935991,0.18043158,32553.0,32547.0,2.20142274]
[1609617936192,0.18043158,32553.0,32504.0,1.0]
[1609617936193,1.18043158,32553.0,32516.0,2.20371717]
[1609617936794,6.18043158,32553.0,32516.0,2.20371717]
[1609617936993,6.18043158,32553.0,32515.0,1.0]
[1609617937194,3.5619,32525.0,32515.0,1.0]
[1609617937393,6.0926,32553.0,32515.0,1.0]
[1609617937592,6.0926,32553.0,32515.0,1.15224]
[1609617937999,0.18043158,32516.0,32515.0,1.15224]
[1609617938191,6.0926,32553.0,32515.0,1.15224]
[1609617938592,4.5313,32533.0,32515.0,1.15224]
[1609617938793,0.0934,32532.0,32515.0,0.15224]
[1609617938995,0.0916,32531.0,32515.0,0.15224]
[1609617939994,0.18043158,32516.0,32515.0,0.15224]
[1609617940194,0.0922,32525.0,32515.0,0.15224]
[1609617940800,1.0,32524.0,32515.0,0.15224]
[1609617942099,0.18043158,32519.0,32515.0,0.33267158]
[1609617942500,0.89743158,32524.0,32515.0,0.33267158]
[1609617942800,0.0933,32582.0,32515.0,0.33267158]
[1609617943399,0.52084379,32580.0,32515.0,0.33267158]
[1609617943601,0.0925,32568.0,32515.0,0.33267158]
[1609617944001,0.18043158,32554.0,32550.0,0.18043158]
[1609617944201,0.18043158,32554.0,32515.0,0.15224]
[1609617944401,0.18043158,32554.0,32515.0,0.1708]
[1609617944602,0.3859,32551.0,32515.0,0.1708]
[1609617945002,0.3859,32551.0,32533.0,1.0]
[1609617945202,0.3859,32551.0,32533.0,1.15784]
[1609617945402,0.0865,32551.0,32533.0,1.15784]
[1609617946103,0.0865,32551.0,32550.0,0.18043158]
[1609617946302,0.0924,32556.0,32550.0,0.18043158]
[1609617947305,0.0924,32556.0,32533.0,0.15784]
[1609617948107,0.0924,32556.0,32540.0,0.18043158]
[1609617948306,0.0924,32556.0,32540.0,0.13396]
[1609617948506,0.0924,32556.0,32533.0,0.15784]
[1609617948707,3.6329,32546.0,32540.0,0.13337]
[1609617949108,3.6329,32546.0,32540.0,0.03947607]
[1609617949307,0.0929,32552.0,32540.0,0.03947607]
[1609617949910,4.8764,32551.0,32533.0,0.06394607]
[1609617950108,4.8764,32551.0,32540.0,0.11059]
[1609617950609,0.0929,32552.0,32540.0,0.07111393]
[1609617951611,0.0929,32552.0,32540.0,0.06923577]
[1609617952111,0.18043158,32541.0,32540.0,0.06923577]
[1609617953011,0.84663158,32541.0,32540.0,0.06923577]
[1609617953212,0.93733158,32541.0,32540.0,0.06923577]
[1609617953414,0.93733158,32541.0,32533.0,0.02128184]
[1609617953713,0.93733158,32541.0,32522.0,0.03]
[1609617954114,0.18043158,32523.0,32522.0,0.03]
[1609617955815,0.69513158,32523.0,32522.0,0.03]
[1609617956016,0.0922,32526.0,32522.0,0.03]
[1609617956417,0.0922,32526.0,32522.0,0.18974]
[1609617957520,0.0922,32526.0,32522.0,0.15974]
[1609617958820,3.6844,32523.0,32522.0,0.08894]
[1609617959020,3.6844,32523.0,32522.0,0.04184]
[1609617959421,3.6844,32523.0,32515.0,0.1708]
[1609617959621,3.6844,32523.0,32503.0,0.16467541]
[1609617959820,3.8095,32523.0,32503.0,0.16467541]
[1609617960023,3.8095,32523.0,32503.0,0.07207541]
[1609617960024,0.1251,32523.0,32503.0,0.07207541]
[1609617960221,0.18043158,32504.0,32503.0,0.07207541]
[1609617961022,6.18043158,32504.0,32503.0,0.07207541]
[1609617961222,6.1808087,32504.0,32372.0,2.07289027]
[1609617961624,4.49638,32479.0,32466.0,0.0936]
[1609617962023,0.00037755,32478.0,32466.0,0.0936]
[1609617962223,0.18043158,32467.0,32466.0,0.0936]
[1609617962423,0.79513158,32467.0,32460.0,0.0923]
[1609617962625,0.30424158,32467.0,32465.0,0.8791]
[1609617962822,0.32436654,32467.0,32465.0,0.5861]
[1609617963023,6.02012669,32466.0,32411.0,1.0]
[1609617963223,4.8541,32436.0,32408.0,1.0]
[1609617963622,0.02013192,32435.0,32408.0,1.0]
[1609617964025,4.6756,32409.0,32408.0,1.0]
[1609617964224,4.85603158,32409.0,32408.0,1.0]
[1609617964528,4.85603158,32409.0,32392.0,5.0]
[1609617964723,5.85640977,32409.0,32324.0,6.67427963]
[1609617964923,0.00037832,32408.0,32324.0,6.67427963]
[1609617965728,0.00037832,32408.0,32324.0,4.6042]
[1609617965729,0.02018229,32408.0,32324.0,4.6042]
[1609617965927,0.00037832,32408.0,32356.0,0.23288541]
[1609617966129,4.2752,32381.0,32357.0,0.0917]
[1609617966328,0.17015,32400.0,32357.0,0.0917]
[1609617966528,5.1004,32371.0,32357.0,0.0917]
[1609617966732,0.00037861,32399.0,32357.0,0.0917]
[1609617966931,0.00037861,32399.0,32356.0,0.23288541]
[1609617967127,0.17015,32400.0,32356.0,0.23288541]
[1609617967328,0.00037857,32399.0,32356.0,0.23288541]
[1609617967928,0.17015,32400.0,32356.0,0.23288541]
[1609617968129,0.18043158,32376.0,32356.0,0.23288541]
[1609617968629,0.0926,32375.0,32356.0,0.23288541]
[1609617968829,0.0726,32375.0,32356.0,0.23288541]
[1609617969034,0.16092,32377.0,32356.0,0.23288541]
[1609617970235,0.15382,32377.0,32376.0,0.18043158]
[1609617970432,0.14622,32377.0,32376.0,0.18043158]
[1609617970730,0.1399,32385.0,32376.0,0.18043158]
[1609617970931,0.1188,32385.0,32376.0,0.18043158]
[1609617971332,0.0746,32385.0,32376.0,0.18043158]
[1609617971934,4.0022,32427.0,32376.0,0.31500158]
[1609617972133,0.18043158,32395.0,32388.0,0.18043158]
[1609617972336,0.18043158,32395.0,32376.0,0.13457]
[1609617972533,0.32578158,32395.0,32376.0,0.13457]
[1609617973034,0.32578158,32395.0,32365.0,0.15707]
[1609617973435,0.27708158,32395.0,32365.0,0.15707]
[1609617975837,0.27708158,32395.0,32356.0,0.23288541]
[1609617976237,0.18043158,32366.0,32365.0,0.18043158]
[1609617976439,0.29035158,32366.0,32365.0,0.18043158]
[1609617976637,4.20195158,32366.0,32356.0,0.07207541]
[1609617976838,5.20195158,32366.0,32356.0,0.07207541]
[1609617977038,1.29035158,32366.0,32356.0,0.07207541]
[1609617978139,1.29035158,32366.0,32357.0,0.0931]
[1609617978539,5.1329,32360.0,32356.0,0.07207541]
[1609617978742,0.29035158,32366.0,32356.0,0.07207541]
[1609617979341,3.5126,32348.0,32341.0,0.07931541]
[1609617979542,0.29035158,32366.0,32341.0,0.07931541]
[1609617979741,3.8008,32329.0,32302.0,0.16631]
[1609617979942,0.29035158,32366.0,32302.0,0.16631]
[1609617980142,0.14272,32329.0,32302.0,0.16631]
[1609617980342,0.18043158,32311.0,32256.0,1.0]
[1609617980543,0.35147158,32311.0,32256.0,1.0]
[1609617980743,0.35147158,32311.0,32246.0,3.6143]
[1609617981643,0.35147158,32311.0,32257.0,0.16567541]
[1609617982043,0.17104,32311.0,32257.0,0.16567541]
[1609617982244,0.18043158,32310.0,32306.0,0.18043158]
[1609617982444,0.17035,32310.0,32306.0,0.18043158]
[1609617983244,0.13898,32319.0,32306.0,0.18043158]
[1609617983644,0.14272,32329.0,32306.0,0.18043158]
[1609617984248,0.14558,32340.0,32328.0,0.18043158]
[1609617984445,0.00618,32340.0,32328.0,0.18043158]
[1609617984645,0.00408,32346.0,32328.0,0.18043158]
[1609617984847,0.02737,32352.0,32328.0,0.34293158]
[1609617985363,0.01397,32352.0,32329.0,0.093]